[Event "Titled Tuesday Blitz May 31 Late 2022"]
[White "Terry, Renato"]
[Black "Fier, Alexandr"]
[WhiteFideId "3803457"]
[BlackFideId "2107139"]
[WhiteElo "2577"]
[BlackElo "2571"]
[Result "0-1"]
[Round "09"]
[TimeControl "180+1"]
[Date "2022.05.31"]
[WhiteClock "0:00:25"]
[BlackClock "0:01:47"]

1. h4 {[%clk 0:02:58]}  d5 {[%clk 0:02:59]} 2. a4 {[%clk 0:02:56]}  e5 {[%clk 0:02:58]} 3. g3 {[%clk 0:02:50]}  Nc6 {[%clk 0:02:57]} 4. Bg2 {[%clk 0:02:50]}  Be6 {[%clk 0:02:56]} 5. b3 {[%clk 0:02:41]}  Qd7 {[%clk 0:02:55]} 6. Bb2 {[%clk 0:02:40]}  f6 {[%clk 0:02:55]} 7. e3 {[%clk 0:02:38]}  O-O-O {[%clk 0:02:51]} 8. Ne2 {[%clk 0:02:39]}  Nh6 {[%clk 0:02:51]} 9. d3 {[%clk 0:02:37]}  Ng4 {[%clk 0:02:52]} 10. Qd2 {[%clk 0:02:28]}  Bb4 {[%clk 0:02:47]} 11. c3 {[%clk 0:02:27]}  Bd6 {[%clk 0:02:47]} 12. b4 {[%clk 0:02:27]}  Kb8 {[%clk 0:02:46]} 13. a5 {[%clk 0:02:23]}  Ne7 {[%clk 0:02:45]} 14. d4 {[%clk 0:02:14]}  e4 {[%clk 0:02:30]} 15. Na3 {[%clk 0:02:11]}  h5 {[%clk 0:02:28]} 16. b5 {[%clk 0:01:52]}  g5 {[%clk 0:02:25]} 17. c4 {[%clk 0:01:40]}  dxc4 {[%clk 0:02:24]} 18. Bxe4 {[%clk 0:01:34]}  Bxa3 {[%clk 0:02:21]} 19. Bxa3 {[%clk 0:01:32]}  Bd5 {[%clk 0:02:22]} 20. Qc2 {[%clk 0:01:15]}  Bxe4 {[%clk 0:02:20]} 21. Qxe4 {[%clk 0:01:15]}  Nd5 {[%clk 0:02:20]} 22. b6 {[%clk 0:01:07]}  Rhe8 {[%clk 0:02:16]} 23. bxc7+ {[%clk 0:01:07]}  Qxc7 {[%clk 0:02:13]} 24. Qb1 {[%clk 0:01:05]}  Qxa5+ {[%clk 0:02:09]} 25. Kf1 {[%clk 0:01:02]}  Ndxe3+ {[%clk 0:02:08]} 26. fxe3 {[%clk 0:01:03]}  Nxe3+ {[%clk 0:02:08]} 27. Kf2 {[%clk 0:01:03]}  Qd2 {[%clk 0:02:06]} 28. Qa2 {[%clk 0:00:42]}  Ng4+ {[%clk 0:02:05]} 29. Kf1 {[%clk 0:00:43]}  Rxe2 {[%clk 0:02:01]} 30. Qxd2 {[%clk 0:00:25]}  Rxd2 {[%clk 0:02:01]} 31. hxg5 {[%clk 0:00:26]}  Ne3+ {[%clk 0:01:47]} 32. Ke1 {[%clk 0:00:25]}  c3 {[%clk 0:01:47]} 0-1


[Site "https://www.chess.com"]

[Event "Titled Tuesday Blitz May 31 Late 2022"]
[White "Urazayev, Arystanbek"]
[Black "Keller, Peter"]
[WhiteFideId "13709810"]
[BlackFideId "1272105"]
[WhiteElo "2422"]
[BlackElo "2275"]
[Result "1-0"]
[Round "09"]
[TimeControl "180+1"]
[Date "2022.05.31"]
[WhiteClock "0:01:37"]
[BlackClock "0:00:01"]

1. d4 {[%clk 0:03:00]}  Nf6 {[%clk 0:02:57]} 2. c4 {[%clk 0:03:01]}  e6 {[%clk 0:02:54]} 3. Nc3 {[%clk 0:03:01]}  Bb4 {[%clk 0:02:53]} 4. Nf3 {[%clk 0:03:01]}  c5 {[%clk 0:02:52]} 5. g3 {[%clk 0:03:01]}  Nc6 {[%clk 0:02:43]} 6. Bg2 {[%clk 0:03:00]}  Ne4 {[%clk 0:02:39]} 7. Bd2 {[%clk 0:03:00]}  Nxd2 {[%clk 0:02:38]} 8. Qxd2 {[%clk 0:03:00]}  cxd4 {[%clk 0:02:38]} 9. Nxd4 {[%clk 0:03:01]}  O-O {[%clk 0:02:37]} 10. O-O {[%clk 0:03:00]}  Ne5 {[%clk 0:02:36]} 11. b3 {[%clk 0:02:59]}  a6 {[%clk 0:02:34]} 12. Nc2 {[%clk 0:02:59]}  Be7 {[%clk 0:02:30]} 13. f4 {[%clk 0:02:56]}  Ng4 {[%clk 0:01:26]} 14. Bf3 {[%clk 0:02:55]}  Bc5+ {[%clk 0:01:14]} 15. Kg2 {[%clk 0:02:54]}  f5 {[%clk 0:01:09]} 16. Rad1 {[%clk 0:02:44]}  h5 {[%clk 0:00:58]} 17. e4 {[%clk 0:02:41]}  Qf6 {[%clk 0:00:34]} 18. e5 {[%clk 0:02:20]}  Qg6 {[%clk 0:00:29]} 19. b4 {[%clk 0:02:15]}  Ba7 {[%clk 0:00:29]} 20. h4 {[%clk 0:02:09]}  Rb8 {[%clk 0:00:28]} 21. Qd6 {[%clk 0:01:50]}  Rd8 {[%clk 0:00:27]} 22. c5 {[%clk 0:01:46]}  Qe8 {[%clk 0:00:21]} 23. Na4 {[%clk 0:01:43]}  Qf8 {[%clk 0:00:20]} 24. Nb6 {[%clk 0:01:42]}  Qxd6 {[%clk 0:00:18]} 25. Rxd6 {[%clk 0:01:43]}  Bxb6 {[%clk 0:00:13]} 26. cxb6 {[%clk 0:01:44]}  Kf8 {[%clk 0:00:13]} 27. Bxg4 {[%clk 0:01:43]}  hxg4 {[%clk 0:00:13]} 28. a4 {[%clk 0:01:42]}  Ke7 {[%clk 0:00:14]} 29. a5 {[%clk 0:01:41]}  g6 {[%clk 0:00:12]} 30. Nd4 {[%clk 0:01:38]}  Ra8 {[%clk 0:00:12]} 31. Nb3 {[%clk 0:01:39]}  Rh8 {[%clk 0:00:12]} 32. Nc5 {[%clk 0:01:38]}  Rd8 {[%clk 0:00:12]} 33. Rfd1 {[%clk 0:01:38]}  Rb8 {[%clk 0:00:12]} 34. Nxe6 {[%clk 0:01:37]}  Rg8 {[%clk 0:00:02]} 35. Nc5 {[%clk 0:01:37]}  Rf8 {[%clk 0:00:01]} 1-0


[Site "https://www.chess.com"]

[Event "Titled Tuesday Blitz May 31 Late 2022"]
[White "Vasquez Schroeder, Rodrigo"]
[Black "Fishbein, Alexander"]
[WhiteFideId "3400042"]
[BlackFideId "2000377"]
[WhiteElo "2567"]
[BlackElo "2442"]
[Result "1-0"]
[Round "09"]
[TimeControl "180+1"]
[Date "2022.05.31"]
[WhiteClock "0:00:15"]
[BlackClock "0:00:09"]

1. e4 {[%clk 0:03:00]}  c5 {[%clk 0:02:53]} 2. Nf3 {[%clk 0:03:00]}  d6 {[%clk 0:02:53]} 3. d4 {[%clk 0:03:00]}  cxd4 {[%clk 0:02:53]} 4. Nxd4 {[%clk 0:03:01]}  Nf6 {[%clk 0:02:52]} 5. Nc3 {[%clk 0:03:01]}  Nc6 {[%clk 0:02:53]} 6. Bg5 {[%clk 0:03:01]}  e6 {[%clk 0:02:53]} 7. Qd2 {[%clk 0:03:01]}  Be7 {[%clk 0:02:53]} 8. O-O-O {[%clk 0:03:00]}  O-O {[%clk 0:02:53]} 9. f4 {[%clk 0:02:59]}  h6 {[%clk 0:02:49]} 10. Bh4 {[%clk 0:02:50]}  Nxd4 {[%clk 0:02:38]} 11. Qxd4 {[%clk 0:02:49]}  a6 {[%clk 0:02:38]} 12. e5 {[%clk 0:02:32]}  dxe5 {[%clk 0:02:25]} 13. fxe5 {[%clk 0:02:16]}  Qxd4 {[%clk 0:02:14]} 14. Rxd4 {[%clk 0:01:31]}  Bc5 {[%clk 0:02:13]} 15. Rc4 {[%clk 0:01:30]}  Be3+ {[%clk 0:02:03]} 16. Kd1 {[%clk 0:01:24]}  Nd7 {[%clk 0:01:57]} 17. Re4 {[%clk 0:01:20]}  Ba7 {[%clk 0:01:51]} 18. Bd3 {[%clk 0:01:12]}  b5 {[%clk 0:01:43]} 19. Rhe1 {[%clk 0:01:10]}  Nc5 {[%clk 0:01:31]} 20. Rg4 {[%clk 0:01:09]}  Nxd3 {[%clk 0:01:23]} 21. cxd3 {[%clk 0:01:10]}  Kh7 {[%clk 0:01:13]} 22. Ne4 {[%clk 0:01:06]}  Bb7 {[%clk 0:01:11]} 23. Nd6 {[%clk 0:01:06]}  Bd5 {[%clk 0:01:08]} 24. Be7 {[%clk 0:00:58]}  Rfb8 {[%clk 0:00:43]} 25. Rf1 {[%clk 0:00:53]}  Rg8 {[%clk 0:00:26]} 26. Rxf7 {[%clk 0:00:43]}  Kh8 {[%clk 0:00:14]} 27. Rg6 {[%clk 0:00:28]}  Kh7 {[%clk 0:00:11]} 28. Rg3 {[%clk 0:00:27]}  Kh8 {[%clk 0:00:11]} 29. a3 {[%clk 0:00:22]}  Bd4 {[%clk 0:00:11]} 30. Rf4 {[%clk 0:00:15]}  Bxe5 {[%clk 0:00:10]} 31. Nf7+ {[%clk 0:00:15]}  Kh7 {[%clk 0:00:10]} 32. Nxe5 {[%clk 0:00:15]}  Rae8 {[%clk 0:00:09]} 33. Rf7 {[%clk 0:00:15]} 1-0


[Site "https://www.chess.com"]

[Event "Titled Tuesday Blitz May 31 Late 2022"]
[White "Wieczorek, Oskar"]
[Black "Maksimenko, Viktor"]
[WhiteFideId "1133950"]
[BlackFideId "13710478"]
[WhiteElo "2330"]
[BlackElo "2269"]
[Result "1-0"]
[Round "09"]
[TimeControl "180+1"]
[Date "2022.05.31"]
[WhiteClock "0:00:25"]
[BlackClock "0:00:56"]

1. e4 {[%clk 0:03:00]}  c6 {[%clk 0:03:00]} 2. d4 {[%clk 0:03:00]}  d5 {[%clk 0:03:00]} 3. Nd2 {[%clk 0:03:01]}  dxe4 {[%clk 0:03:01]} 4. Nxe4 {[%clk 0:03:02]}  Nf6 {[%clk 0:03:01]} 5. Nxf6+ {[%clk 0:03:02]}  exf6 {[%clk 0:03:02]} 6. Be2 {[%clk 0:03:02]}  Bd6 {[%clk 0:03:02]} 7. Bf3 {[%clk 0:03:02]}  O-O {[%clk 0:03:02]} 8. Ne2 {[%clk 0:03:03]}  Re8 {[%clk 0:03:00]} 9. O-O {[%clk 0:03:03]}  Bf5 {[%clk 0:03:01]} 10. c4 {[%clk 0:02:50]}  Nd7 {[%clk 0:02:59]} 11. Be3 {[%clk 0:02:48]}  Nf8 {[%clk 0:02:57]} 12. c5 {[%clk 0:02:48]}  Bc7 {[%clk 0:02:55]} 13. d5 {[%clk 0:02:48]}  cxd5 {[%clk 0:02:54]} 14. Bxd5 {[%clk 0:02:42]}  Be4 {[%clk 0:02:49]} 15. Bxe4 {[%clk 0:02:36]}  Rxe4 {[%clk 0:02:50]} 16. Nc3 {[%clk 0:02:35]}  Re8 {[%clk 0:02:41]} 17. b4 {[%clk 0:02:20]}  Be5 {[%clk 0:02:38]} 18. Qb3 {[%clk 0:02:20]}  Qc8 {[%clk 0:02:32]} 19. Rac1 {[%clk 0:02:13]}  Ng6 {[%clk 0:02:30]} 20. Nd5 {[%clk 0:01:59]}  Nh4 {[%clk 0:02:24]} 21. Qc4 {[%clk 0:01:21]}  Nf5 {[%clk 0:02:19]} 22. Rfd1 {[%clk 0:01:18]}  Qe6 {[%clk 0:02:12]} 23. b5 {[%clk 0:01:04]}  Rac8 {[%clk 0:02:10]} 24. c6 {[%clk 0:01:02]}  Nd6 {[%clk 0:01:48]} 25. Qb3 {[%clk 0:00:49]}  Nxb5 {[%clk 0:01:47]} 26. cxb7 {[%clk 0:00:48]}  Rxc1 {[%clk 0:01:38]} 27. Rxc1 {[%clk 0:00:46]}  a6 {[%clk 0:01:09]} 28. Rc8 {[%clk 0:00:30]}  Bb8 {[%clk 0:00:56]} 29. Nxf6+ {[%clk 0:00:25]} 1-0


[Site "https://www.chess.com"]

[Event "Titled Tuesday Blitz May 31 Late 2022"]
[White "Xiong, Jeffery"]
[Black "Ivic, Velimir"]
[WhiteFideId "2047640"]
[BlackFideId "950122"]
[WhiteElo "2727"]
[BlackElo "2610"]
[Result "1-0"]
[Round "09"]
[TimeControl "180+1"]
[Date "2022.05.31"]
[WhiteClock "0:01:57"]
[BlackClock "0:01:05"]

1. d4 {[%clk 0:03:00]}  Nf6 {[%clk 0:02:59]} 2. Nf3 {[%clk 0:03:01]}  g6 {[%clk 0:03:00]} 3. Nbd2 {[%clk 0:03:02]}  c5 {[%clk 0:02:59]} 4. dxc5 {[%clk 0:03:01]}  Qa5 {[%clk 0:02:59]} 5. a3 {[%clk 0:03:01]}  Qxc5 {[%clk 0:03:00]} 6. b4 {[%clk 0:03:01]}  Qc7 {[%clk 0:03:00]} 7. Bb2 {[%clk 0:03:02]}  Bg7 {[%clk 0:03:01]} 8. g3 {[%clk 0:03:02]}  b6 {[%clk 0:03:01]} 9. Bg2 {[%clk 0:03:03]}  Bb7 {[%clk 0:03:02]} 10. O-O {[%clk 0:03:03]}  O-O {[%clk 0:03:03]} 11. c4 {[%clk 0:03:04]}  d6 {[%clk 0:03:03]} 12. Qb3 {[%clk 0:03:04]}  Nbd7 {[%clk 0:03:02]} 13. Rfd1 {[%clk 0:03:05]}  Rac8 {[%clk 0:03:02]} 14. Rac1 {[%clk 0:03:05]}  Qb8 {[%clk 0:03:03]} 15. Nf1 {[%clk 0:03:06]}  a6 {[%clk 0:03:03]} 16. Ne3 {[%clk 0:03:06]}  b5 {[%clk 0:03:01]} 17. Bh3 {[%clk 0:02:52]}  bxc4 {[%clk 0:02:54]} 18. Nxc4 {[%clk 0:02:53]}  Rc7 {[%clk 0:02:45]} 19. Na5 {[%clk 0:02:49]}  Bd5 {[%clk 0:02:28]} 20. Rxd5 {[%clk 0:02:36]}  Nxd5 {[%clk 0:02:29]} 21. Rxc7 {[%clk 0:02:36]}  Qxc7 {[%clk 0:02:11]} 22. Bxg7 {[%clk 0:02:36]}  Kxg7 {[%clk 0:01:45]} 23. Qxd5 {[%clk 0:02:35]}  Nf6 {[%clk 0:01:45]} 24. Qc6 {[%clk 0:02:11]}  Qxc6 {[%clk 0:01:31]} 25. Nxc6 {[%clk 0:02:12]}  e6 {[%clk 0:01:32]} 26. Nfd4 {[%clk 0:02:12]}  Rc8 {[%clk 0:01:31]} 27. f3 {[%clk 0:02:12]}  Rc7 {[%clk 0:01:27]} 28. Bxe6 {[%clk 0:02:10]}  Rxc6 {[%clk 0:01:09]} 29. Nxc6 {[%clk 0:02:11]}  fxe6 {[%clk 0:01:09]} 30. Nb8 {[%clk 0:02:11]}  a5 {[%clk 0:01:05]} 31. b5 {[%clk 0:01:57]} 1-0


[Site "https://www.chess.com"]

[Event "Titled Tuesday Blitz May 31 Late 2022"]
[White "Yurovskykh, Oleksandr"]
[Black "Hasangatin, Ramil"]
[WhiteFideId "14134020"]
[BlackFideId "4122160"]
[WhiteElo "2292"]
[BlackElo "2399"]
[Result "1-0"]
[Round "09"]
[TimeControl "180+1"]
[Date "2022.06.01"]
[WhiteClock "0:00:05"]
[BlackClock "0:00:02"]

1. d4 {[%clk 0:02:07]}  Nf6 {[%clk 0:02:57]} 2. Nf3 {[%clk 0:02:02]}  d6 {[%clk 0:02:58]} 3. Bg5 {[%clk 0:02:02]}  Nbd7 {[%clk 0:02:55]} 4. e3 {[%clk 0:02:02]}  e5 {[%clk 0:02:55]} 5. c4 {[%clk 0:02:02]}  Be7 {[%clk 0:02:55]} 6. Nc3 {[%clk 0:02:03]}  O-O {[%clk 0:02:55]} 7. Be2 {[%clk 0:02:03]}  c6 {[%clk 0:02:56]} 8. O-O {[%clk 0:02:04]}  Re8 {[%clk 0:02:56]} 9. Qc2 {[%clk 0:02:03]}  Qc7 {[%clk 0:02:56]} 10. Rfd1 {[%clk 0:02:04]}  Nf8 {[%clk 0:02:56]} 11. Bh4 {[%clk 0:01:56]}  Ng6 {[%clk 0:02:56]} 12. Bg3 {[%clk 0:01:57]}  Nh5 {[%clk 0:02:55]} 13. Rac1 {[%clk 0:01:55]}  Nxg3 {[%clk 0:02:55]} 14. hxg3 {[%clk 0:01:56]}  exd4 {[%clk 0:02:53]} 15. Nxd4 {[%clk 0:01:54]}  Bf8 {[%clk 0:02:50]} 16. Bd3 {[%clk 0:01:49]}  Bd7 {[%clk 0:02:48]} 17. Bf5 {[%clk 0:01:49]}  Rad8 {[%clk 0:02:47]} 18. Bxd7 {[%clk 0:01:48]}  Rxd7 {[%clk 0:02:47]} 19. b3 {[%clk 0:01:48]}  Ne5 {[%clk 0:02:46]} 20. Nf3 {[%clk 0:01:48]}  Ng4 {[%clk 0:02:38]} 21. Nh2 {[%clk 0:01:48]}  Nf6 {[%clk 0:02:35]} 22. Rd2 {[%clk 0:01:48]}  g6 {[%clk 0:02:34]} 23. Rcd1 {[%clk 0:01:48]}  Bg7 {[%clk 0:02:32]} 24. Ne2 {[%clk 0:01:43]}  Red8 {[%clk 0:02:28]} 25. Nf4 {[%clk 0:01:43]}  Qa5 {[%clk 0:02:23]} 26. Nf3 {[%clk 0:01:42]}  a6 {[%clk 0:02:13]} 27. Rd3 {[%clk 0:01:43]}  Qc5 {[%clk 0:02:09]} 28. R3d2 {[%clk 0:01:39]}  b5 {[%clk 0:02:04]} 29. Qd3 {[%clk 0:01:35]}  bxc4 {[%clk 0:02:01]} 30. Qxc4 {[%clk 0:01:36]}  Qb6 {[%clk 0:01:54]} 31. Rc2 {[%clk 0:01:33]}  Rc7 {[%clk 0:01:42]} 32. Qa4 {[%clk 0:01:30]}  Qb5 {[%clk 0:01:38]} 33. Qc4 {[%clk 0:01:24]}  Qxc4 {[%clk 0:01:28]} 34. Rxc4 {[%clk 0:01:24]}  Rcc8 {[%clk 0:01:18]} 35. Ra4 {[%clk 0:01:23]}  Ra8 {[%clk 0:01:14]} 36. Rc1 {[%clk 0:01:18]}  Rdc8 {[%clk 0:01:13]} 37. Nd4 {[%clk 0:01:14]}  c5 {[%clk 0:01:12]} 38. Nde2 {[%clk 0:01:14]}  d5 {[%clk 0:01:03]} 39. Ra5 {[%clk 0:01:09]}  Bf8 {[%clk 0:00:57]} 40. Rd1 {[%clk 0:01:09]}  Rd8 {[%clk 0:00:55]} 41. Nc3 {[%clk 0:01:08]}  d4 {[%clk 0:00:54]} 42. exd4 {[%clk 0:01:08]}  cxd4 {[%clk 0:00:52]} 43. Ncd5 {[%clk 0:01:09]}  Nxd5 {[%clk 0:00:48]} 44. Rxd5 {[%clk 0:01:08]}  Bg7 {[%clk 0:00:45]} 45. Rxd8+ {[%clk 0:01:06]}  Rxd8 {[%clk 0:00:45]} 46. Nd3 {[%clk 0:01:05]}  Bh6 {[%clk 0:00:38]} 47. f4 {[%clk 0:00:34]}  Rc8 {[%clk 0:00:33]} 48. Rc1 {[%clk 0:00:33]}  Rc3 {[%clk 0:00:32]} 49. Rxc3 {[%clk 0:00:33]}  dxc3 {[%clk 0:00:33]} 50. Nb4 {[%clk 0:00:34]}  Bf8 {[%clk 0:00:26]} 51. Nc2 {[%clk 0:00:34]}  f5 {[%clk 0:00:23]} 52. Kf1 {[%clk 0:00:34]}  a5 {[%clk 0:00:20]} 53. Ke2 {[%clk 0:00:35]}  Bc5 {[%clk 0:00:21]} 54. Ne1 {[%clk 0:00:27]}  Kf7 {[%clk 0:00:20]} 55. Nd3 {[%clk 0:00:27]}  Bd4 {[%clk 0:00:20]} 56. Kd1 {[%clk 0:00:21]}  Ke6 {[%clk 0:00:19]} 57. Nc1 {[%clk 0:00:20]}  Kd5 {[%clk 0:00:19]} 58. Ne2 {[%clk 0:00:20]}  Bf6 {[%clk 0:00:10]} 59. Kc2 {[%clk 0:00:20]}  Ke4 {[%clk 0:00:09]} 60. Nxc3+ {[%clk 0:00:21]}  Kd4 {[%clk 0:00:10]} 61. Nd1 {[%clk 0:00:20]}  Be7 {[%clk 0:00:08]} 62. Kd2 {[%clk 0:00:20]}  Bb4+ {[%clk 0:00:08]} 63. Ke2 {[%clk 0:00:21]}  Ba3 {[%clk 0:00:08]} 64. Nf2 {[%clk 0:00:20]}  Kc3 {[%clk 0:00:07]} 65. Nd3 {[%clk 0:00:21]}  Bd6 {[%clk 0:00:08]} 66. Ke3 {[%clk 0:00:19]}  h5 {[%clk 0:00:07]} 67. Ne5 {[%clk 0:00:15]}  g5 {[%clk 0:00:04]} 68. Nc4 {[%clk 0:00:13]}  Bc5+ {[%clk 0:00:04]} 69. Ke2 {[%clk 0:00:14]}  gxf4 {[%clk 0:00:03]} 70. gxf4 {[%clk 0:00:15]}  a4 {[%clk 0:00:03]} 71. Ne5 {[%clk 0:00:07]}  a3 {[%clk 0:00:02]} 72. Nd3 {[%clk 0:00:06]}  Bd4 {[%clk 0:00:02]} 73. g3 {[%clk 0:00:05]} 1-0


[Site "https://www.chess.com"]

[Event "Titled Tuesday Blitz May 31 Late 2022"]
[White "Zeynalli, Rashad"]
[Black "Gomez Ledo, Roberto Carlos"]
[WhiteFideId "13403320"]
[BlackFideId "3507076"]
[WhiteElo "2125"]
[BlackElo "2379"]
[Result "1-0"]
[Round "09"]
[TimeControl "180+1"]
[Date "2022.06.01"]
[WhiteClock "0:00:11"]
[BlackClock "0:00:05"]

1. d4 {[%clk 0:03:00]}  Nf6 {[%clk 0:02:57]} 2. Bf4 {[%clk 0:02:59]}  d5 {[%clk 0:02:56]} 3. e3 {[%clk 0:02:59]}  e6 {[%clk 0:02:56]} 4. Nd2 {[%clk 0:02:59]}  Bd6 {[%clk 0:02:56]} 5. Bg3 {[%clk 0:02:59]}  Qe7 {[%clk 0:02:57]} 6. Ngf3 {[%clk 0:02:59]}  O-O {[%clk 0:02:58]} 7. Bd3 {[%clk 0:02:58]}  Nc6 {[%clk 0:02:58]} 8. Ne5 {[%clk 0:02:54]}  Nd7 {[%clk 0:02:57]} 9. Nxc6 {[%clk 0:02:45]}  bxc6 {[%clk 0:02:57]} 10. Bxd6 {[%clk 0:02:38]}  cxd6 {[%clk 0:02:52]} 11. O-O {[%clk 0:02:35]}  c5 {[%clk 0:02:50]} 12. c3 {[%clk 0:02:34]}  e5 {[%clk 0:02:44]} 13. e4 {[%clk 0:02:30]}  cxd4 {[%clk 0:02:13]} 14. cxd4 {[%clk 0:02:27]}  Bb7 {[%clk 0:02:06]} 15. Re1 {[%clk 0:02:26]}  Qf6 {[%clk 0:01:53]} 16. exd5 {[%clk 0:02:15]}  Bxd5 {[%clk 0:01:52]} 17. Ne4 {[%clk 0:02:15]}  Bxe4 {[%clk 0:01:42]} 18. Bxe4 {[%clk 0:02:16]}  Rab8 {[%clk 0:01:42]} 19. dxe5 {[%clk 0:02:13]}  Nxe5 {[%clk 0:01:43]} 20. b3 {[%clk 0:02:07]}  Rfd8 {[%clk 0:01:39]} 21. Qe2 {[%clk 0:02:03]}  d5 {[%clk 0:01:34]} 22. Bxh7+ {[%clk 0:01:53]}  Kxh7 {[%clk 0:01:30]} 23. Qxe5 {[%clk 0:01:53]}  Qg6 {[%clk 0:01:09]} 24. Rad1 {[%clk 0:01:47]}  f6 {[%clk 0:00:54]} 25. Qe6 {[%clk 0:01:41]}  d4 {[%clk 0:00:47]} 26. Re4 {[%clk 0:01:35]}  Qg5 {[%clk 0:00:38]} 27. h4 {[%clk 0:01:20]}  Qc5 {[%clk 0:00:34]} 28. Rd3 {[%clk 0:01:13]}  Rd5 {[%clk 0:00:22]} 29. Rg4 {[%clk 0:01:02]}  Rb7 {[%clk 0:00:18]} 30. Rdg3 {[%clk 0:00:48]}  d3 {[%clk 0:00:15]} 31. Rxd3 {[%clk 0:00:40]}  Re5 {[%clk 0:00:05]} 32. Qc4 {[%clk 0:00:17]}  Re1+ {[%clk 0:00:05]} 33. Kh2 {[%clk 0:00:17]}  Qe5+ {[%clk 0:00:06]} 34. Qf4 {[%clk 0:00:14]}  Qa1 {[%clk 0:00:05]} 35. Qf5+ {[%clk 0:00:12]}  Kg8 {[%clk 0:00:04]} 36. Rd8+ {[%clk 0:00:12]}  Kf7 {[%clk 0:00:05]} 37. Qg6+ {[%clk 0:00:11]}  Ke7 {[%clk 0:00:05]} 38. Qe8# {[%clk 0:00:11]} 1-0


[Site "https://www.chess.com"]

[Event "Titled Tuesday Blitz May 31 Late 2022"]
[White "Zhigalko, Sergei"]
[Black "Bluebaum, Matthias"]
[WhiteFideId "13502956"]
[BlackFideId "24651516"]
[WhiteElo "2662"]
[BlackElo "2556"]
[Result "1-0"]
[Round "09"]
[TimeControl "180+1"]
[Date "2022.05.31"]
[WhiteClock "0:00:03"]
[BlackClock "0:00:06"]

1. e4 {[%clk 0:03:00]}  e5 {[%clk 0:03:00]} 2. Nf3 {[%clk 0:03:00]}  Nf6 {[%clk 0:03:01]} 3. d4 {[%clk 0:02:59]}  Nxe4 {[%clk 0:03:01]} 4. Bd3 {[%clk 0:02:59]}  d5 {[%clk 0:03:01]} 5. Nxe5 {[%clk 0:03:00]}  Nd7 {[%clk 0:03:01]} 6. Nxd7 {[%clk 0:03:00]}  Bxd7 {[%clk 0:03:00]} 7. O-O {[%clk 0:03:00]}  Bd6 {[%clk 0:02:59]} 8. Nc3 {[%clk 0:03:01]}  Nxc3 {[%clk 0:02:56]} 9. bxc3 {[%clk 0:03:02]}  O-O {[%clk 0:02:55]} 10. Qh5 {[%clk 0:03:02]}  f5 {[%clk 0:02:55]} 11. Re1 {[%clk 0:03:01]}  c6 {[%clk 0:02:54]} 12. c4 {[%clk 0:03:00]}  Qf6 {[%clk 0:02:45]} 13. c3 {[%clk 0:02:54]}  Rae8 {[%clk 0:02:32]} 14. Bd2 {[%clk 0:02:39]}  Qf7 {[%clk 0:02:26]} 15. Qxf7+ {[%clk 0:02:27]}  Kxf7 {[%clk 0:02:27]} 16. c5 {[%clk 0:01:53]}  Bc7 {[%clk 0:02:21]} 17. c4 {[%clk 0:01:54]}  Rxe1+ {[%clk 0:01:24]} 18. Rxe1 {[%clk 0:01:53]}  Re8 {[%clk 0:01:25]} 19. Rb1 {[%clk 0:01:35]}  b6 {[%clk 0:01:24]} 20. cxb6 {[%clk 0:01:25]}  axb6 {[%clk 0:01:22]} 21. cxd5 {[%clk 0:01:19]}  cxd5 {[%clk 0:01:22]} 22. Bb4 {[%clk 0:01:06]}  Ra8 {[%clk 0:01:04]} 23. a3 {[%clk 0:01:02]}  Bd8 {[%clk 0:01:04]} 24. Be2 {[%clk 0:00:22]}  Bf6 {[%clk 0:01:00]} 25. Bf3 {[%clk 0:00:11]}  Be6 {[%clk 0:01:00]} 26. Rd1 {[%clk 0:00:10]}  Be7 {[%clk 0:01:01]} 27. Bxe7 {[%clk 0:00:03]}  Kxe7 {[%clk 0:01:02]} 28. Rd3 {[%clk 0:00:03]}  f4 {[%clk 0:01:02]} 29. Rb3 {[%clk 0:00:03]}  Ra4 {[%clk 0:00:53]} 30. g3 {[%clk 0:00:03]}  Rxd4 {[%clk 0:00:40]} 31. Rxb6 {[%clk 0:00:02]}  Rd3 {[%clk 0:00:39]} 32. Kg2 {[%clk 0:00:02]}  fxg3 {[%clk 0:00:36]} 33. hxg3 {[%clk 0:00:02]}  Rxa3 {[%clk 0:00:37]} 34. Rb7+ {[%clk 0:00:02]}  Kf6 {[%clk 0:00:37]} 35. Rb6 {[%clk 0:00:03]}  Ke5 {[%clk 0:00:05]} 36. Rb7 {[%clk 0:00:03]}  g5 {[%clk 0:00:03]} 37. Rxh7 {[%clk 0:00:02]}  g4 {[%clk 0:00:04]} 38. Rh5+ {[%clk 0:00:02]}  Kd4 {[%clk 0:00:03]} 39. Bxg4 {[%clk 0:00:02]}  Bxg4 {[%clk 0:00:03]} 40. Rh4 {[%clk 0:00:02]}  Kc3 {[%clk 0:00:03]} 41. Rxg4 {[%clk 0:00:03]}  d4 {[%clk 0:00:04]} 42. Rg8 {[%clk 0:00:02]}  Ra4 {[%clk 0:00:04]} 43. Rc8+ {[%clk 0:00:02]}  Rc4 {[%clk 0:00:04]} 44. Rd8 {[%clk 0:00:02]}  d3 {[%clk 0:00:04]} 45. Kf1 {[%clk 0:00:02]}  Kc2 {[%clk 0:00:03]} 46. f3 {[%clk 0:00:01]}  d2 {[%clk 0:00:04]} 47. Ke2 {[%clk 0:00:02]}  Kc1 {[%clk 0:00:02]} 48. Rxd2 {[%clk 0:00:02]}  Rc7 {[%clk 0:00:03]} 49. Rd3 {[%clk 0:00:02]}  Re7+ {[%clk 0:00:04]} 50. Re3 {[%clk 0:00:03]}  Ra7 {[%clk 0:00:05]} 51. f4 {[%clk 0:00:03]}  Ra3 {[%clk 0:00:06]} 52. Rxa3 {[%clk 0:00:03]} 1-0


[Site "https://www.chess.com"]

[Event "Titled Tuesday Blitz May 31 Late 2022"]
[White "Abarca Gonzalez, Nicolas"]
[Black "Christiansen, Johan-Sebastian"]
[WhiteFideId "3409422"]
[BlackFideId "1512668"]
[WhiteElo "2504"]
[BlackElo "2513"]
[Result "1-0"]
[Round "10"]
[TimeControl "180+1"]
[Date "2022.05.31"]
[WhiteClock "0:01:20"]
[BlackClock "0:00:03"]

1. e4 {[%clk 0:03:00]}  e5 {[%clk 0:02:55]} 2. Nf3 {[%clk 0:02:59]}  Nc6 {[%clk 0:02:56]} 3. Bc4 {[%clk 0:02:58]}  Nf6 {[%clk 0:02:55]} 4. Ng5 {[%clk 0:02:57]}  d5 {[%clk 0:02:55]} 5. exd5 {[%clk 0:02:58]}  Na5 {[%clk 0:02:56]} 6. Bb5+ {[%clk 0:02:58]}  c6 {[%clk 0:02:56]} 7. dxc6 {[%clk 0:02:59]}  bxc6 {[%clk 0:02:57]} 8. Bd3 {[%clk 0:02:59]}  Nd5 {[%clk 0:02:51]} 9. h4 {[%clk 0:02:58]}  h6 {[%clk 0:02:43]} 10. Qh5 {[%clk 0:02:56]}  Qf6 {[%clk 0:02:33]} 11. Nh7 {[%clk 0:02:54]}  Rxh7 {[%clk 0:02:28]} 12. Bxh7 {[%clk 0:02:55]}  g6 {[%clk 0:02:27]} 13. Qe2 {[%clk 0:02:42]}  Nf4 {[%clk 0:02:07]} 14. Qf3 {[%clk 0:02:38]}  Bc5 {[%clk 0:02:08]} 15. Nc3 {[%clk 0:02:34]}  Bf5 {[%clk 0:02:02]} 16. d3 {[%clk 0:02:28]}  O-O-O {[%clk 0:01:53]} 17. g3 {[%clk 0:02:24]}  Ne6 {[%clk 0:01:14]} 18. Be3 {[%clk 0:02:15]}  Bxe3 {[%clk 0:01:02]} 19. fxe3 {[%clk 0:02:14]}  h5 {[%clk 0:00:52]} 20. e4 {[%clk 0:02:13]}  Nd4 {[%clk 0:00:52]} 21. Qf2 {[%clk 0:02:11]}  Qg7 {[%clk 0:00:47]} 22. exf5 {[%clk 0:02:09]}  Qxh7 {[%clk 0:00:47]} 23. f6 {[%clk 0:02:06]}  Qh6 {[%clk 0:00:46]} 24. Ne4 {[%clk 0:02:04]}  Qf8 {[%clk 0:00:37]} 25. c3 {[%clk 0:02:02]}  Nb5 {[%clk 0:00:32]} 26. a4 {[%clk 0:01:58]}  Nc7 {[%clk 0:00:27]} 27. Qxa7 {[%clk 0:01:54]}  Rxd3 {[%clk 0:00:22]} 28. O-O {[%clk 0:01:42]}  Nc4 {[%clk 0:00:18]} 29. Rad1 {[%clk 0:01:35]}  Qd8 {[%clk 0:00:17]} 30. Nc5 {[%clk 0:01:28]}  Re3 {[%clk 0:00:03]} 31. Qb7# {[%clk 0:01:20]} 1-0


[Site "https://www.chess.com"]